bitfinex-derivatives/quotes_ETHF0:USTF0_20250926
["timestamp","ask_amount","ask_price","bid_price","bid_amount"]
[1758877791371,0.7698,3934.4,3934.3,8.91263591]
[1758877791570,1.22689,3934.4,3934.3,8.91263591]
[1758877791875,0.7698,3934.4,3934.3,8.91263591]
[1758877792071,1.22689,3934.4,3934.3,8.45553591]
[1758877792271,1.22689,3934.4,3934.3,8.91263591]
[1758877792478,0.7698,3934.4,3934.3,8.91263591]
[1758877792675,1.22689,3934.4,3934.3,8.91263591]
[1758877793170,0.7698,3934.4,3934.3,8.91263591]
[1758877793374,1.22689,3934.4,3934.3,8.91263591]
[1758877794377,0.45715,3933.9,3933.7,0.45717]
[1758877794569,1.22695,3933.9,3933.8,40.3574]
[1758877794776,0.5416,3933.9,3933.8,40.81456]
[1758877795078,0.5416,3933.9,3933.8,41.04046]
[1758877796675,0.1332,3934.5,3934.4,1.13339]
[1758877796676,0.77228,3934.5,3934.4,1.13339]
[1758877796881,0.8711645,3934.5,3934.4,1.39239]
[1758877797568,0.2264,3934.8,3934.7,0.4504]
[1758877797773,0.3596,3935.0,3934.9,0.68013]
[1758877797973,1.23076399,3935.0,3934.9,0.9353]
[1758877798177,1.23076399,3935.0,3934.9,0.7094]
[1758877798476,1.91598399,3935.0,3934.9,0.7094]
[1758877799080,1.45896399,3935.0,3934.9,1.16643]
[1758877799783,0.55596399,3935.0,3934.9,1.39233]
[1758877800084,0.5434,3935.4,3935.3,0.68008]
[1758877800383,0.5434,3935.4,3933.8,39.645]
[1758877800384,0.2119,3933.9,3933.8,39.645]
[1758877800576,0.3471,3933.9,3933.8,40.58606]
[1758877800889,0.559,3934.8,3934.7,0.4303]
[1758877801083,0.5544433,3934.8,3934.7,1.37126]
[1758877801285,0.45699,3935.3,3935.1,1.11221]
[1758877801477,0.1332,3935.5,3935.1,1.11221]
[1758877801478,0.3471,3935.4,3935.3,1.11219]
[1758877801672,0.1281,3936.0,3935.3,1.11219]
[1758877801673,0.559,3935.9,3935.8,0.4303]
[1758877801878,0.559,3935.9,3935.4,39.644]
[1758877801879,0.45697,3935.5,3935.4,39.644]
[1758877802078,0.45697,3935.5,3935.4,39.903]
[1758877802079,0.4752,3935.5,3935.4,39.903]
[1758877802286,0.34,3936.0,3935.9,0.4303]
[1758877802487,0.34,3936.0,3935.9,0.6893]
[1758877802684,0.45692,3935.9,3935.7,7.74613591]
[1758877802885,0.7741,3935.6,3934.4,40.8]
[1758877803186,0.559,3935.4,3935.3,0.2158]
[1758877803488,0.7741,3935.4,3935.3,40.3313]
[1758877803695,0.7741,3935.4,3935.3,0.4303]
[1758877803880,0.7741,3935.4,3935.3,39.641]
[1758877804080,0.7741,3935.4,3935.3,39.9]
[1758877805780,1.00759,3935.3,3935.2,0.6768]
[1758877805980,1.00759,3935.3,3935.2,0.9358]
[1758877806389,1.00759,3935.3,3935.2,0.4788]
[1758877806680,1.23019,3935.3,3935.2,0.4788]
[1758877806887,0.7732,3935.3,3935.2,0.4788]
[1758877807382,0.7732,3935.3,3935.2,0.6976]
[1758877807585,0.4625,3935.5,3935.4,0.45698]
[1758877807785,0.4625,3935.5,3935.4,9.12541591]
[1758877807982,0.4625,3935.5,3935.4,8.66843591]
[1758877808291,1.35826,3935.5,3935.4,8.44373591]
[1758877808783,1.35826,3935.5,3935.4,8.18473591]
[1758877808981,0.79146,3934.7,3934.6,39.638]
[1758877809178,0.79146,3934.7,3934.6,39.897]
[1758877809379,0.67331,3934.3,3934.2,40.53371]
[1758877809689,1.00771,3934.3,3934.2,40.79271]
[1758877809886,1.23031,3934.3,3934.2,0.4386]
[1758877810190,0.7732,3933.9,3933.8,39.8578]
[1758877810382,0.7732,3933.9,3933.8,40.1168]
[1758877810984,0.7732,3933.9,3933.8,40.57396]
[1758877811291,0.3344,3933.9,3933.8,40.79866]
[1758877811890,0.79155,3933.9,3933.8,40.79866]
[1758877812185,0.79155,3933.9,3933.8,40.3415]
[1758877812387,0.3344,3933.9,3933.8,40.79866]
[1758877812592,0.79155,3933.9,3933.8,40.3415]
[1758877812888,0.79155,3933.9,3933.8,40.79866]
[1758877813190,0.79155,3933.9,3933.8,1.12046]
[1758877813386,0.79155,3933.9,3933.8,40.5613]
[1758877814087,0.79155,3933.9,3933.8,41.01846]
[1758877814292,0.3344,3933.9,3933.8,41.01846]
[1758877814489,0.79151,3934.3,3933.9,0.4386]
[1758877814683,0.472,3935.0,3934.1,8.40943591]
[1758877814883,1.14522,3935.0,3934.9,7.96593591]
[1758877815085,1.93009774,3935.0,3934.9,8.22493591]
[1758877815382,1.03427774,3935.0,3934.9,8.90076591]
[1758877815582,0.56227774,3935.0,3934.9,9.12546591]
[1758877815784,1.14236,3935.8,3935.7,0.4386]
[1758877815785,0.67313,3935.8,3935.7,0.4386]
[1758877815980,1.23013,3935.8,3935.7,0.2198]
[1758877816188,0.8958,3935.2,3935.1,7.74613591]
[1758877816389,0.8958,3935.2,3935.1,8.00513591]
[1758877816390,1.2302,3935.2,3935.1,8.00513591]
[1758877816590,0.3344,3935.1,3934.5,8.85496675]
[1758877816787,1.23026,3934.7,3934.6,0.4386]
[1758877816996,1.23026,3934.7,3934.6,40.3376]
[1758877817791,0.7732,3934.7,3934.6,40.3376]
[1758877817989,0.45704,3934.9,3934.8,0.6633]
[1758877818183,0.79142,3935.0,3934.9,0.6633]
[1758877818386,1.14522,3935.0,3934.9,0.4386]
[1758877818789,0.5506,3934.7,3934.6,0.2198]
[1758877819096,0.5506,3934.7,3934.6,40.57587]
[1758877819390,0.3344,3934.7,3934.6,40.80057]
[1758877820000,0.79146,3934.7,3934.6,40.57587]
[1758877820198,0.79146,3934.7,3934.6,40.1188]
[1758877820800,0.3344,3934.7,3934.6,40.57587]
[1758877821398,0.79146,3934.7,3934.6,40.1188]
[1758877822296,0.79146,3934.7,3934.6,40.57587]
[1758877822497,0.79146,3934.7,3934.6,40.1188]
[1758877823099,0.79146,3934.7,3934.1,8.63026675]
[1758877823100,0.79152,3934.2,3934.1,9.52599675]
[1758877823302,0.79152,3934.2,3934.1,49.42399675]
[1758877823900,0.79152,3934.2,3934.1,48.96686675]
[1758877824297,1.23032,3934.2,3934.1,0.4386]
[1758877824600,1.23032,3934.2,3934.1,0.4788]
[1758877825596,0.7732,3934.2,3934.1,0.4788]
[1758877825895,1.23031,3934.2,3934.1,0.2198]
[1758877826097,0.79155,3933.9,3933.8,39.64]
[1758877826300,0.79155,3933.9,3933.8,39.899]
[1758877826698,0.1376,3934.0,3933.5,40.8]
[1758877826699,0.79158,3933.6,3933.5,39.64]
[1758877826897,0.79163,3933.2,3933.1,9.06886675]
[1758877827104,0.79163,3933.2,3933.1,48.96786675]
[1758877827400,1.00783,3933.2,3933.1,9.06886675]
[1758877827702,1.00783,3933.2,3933.1,40.1198]
[1758877827891,1.00783,3933.2,3932.8,0.26619617]
[1758877827892,0.45726,3932.9,3932.8,0.26619617]
[1758877828098,1.23046,3932.9,3932.8,0.74399617]
[1758877828301,1.23046,3932.9,3932.8,0.04639617]
[1758877828499,1.23046,3932.9,3932.8,0.30539617]
[1758877828704,0.56569844,3932.9,3932.8,0.74399617]
[1758877829005,0.3344,3934.1,3933.6,0.2247]
[1758877829199,0.45712,3934.2,3934.0,8.63026675]
[1758877829403,0.45712,3934.2,3934.1,0.4847]
[1758877830009,0.45717,3933.8,3933.6,0.2247]
[1758877830210,0.79157,3933.8,3933.7,39.903]
[1758877830402,0.45714,3934.0,3933.7,48.53326675]
[1758877830603,0.45714,3934.0,3933.8,0.2248]
[1758877830813,0.45714,3934.0,3933.9,0.26]
[1758877831617,0.79614,3934.0,3933.9,0.26]
[1758877832107,0.92494,3934.0,3933.9,0.26]
[1758877832715,0.92494,3934.0,3933.7,48.27326675]
[1758877832716,0.45716,3933.8,3933.7,8.63026675]
[1758877832910,0.339,3933.6,3933.3,0.45722]
[1758877833112,0.45718,3933.7,3933.4,39.904]
[1758877833311,0.339,3933.8,3933.5,0.45719]
[1758877833514,0.339,3933.8,3933.7,0.2248]
[1758877833716,0.79615,3933.9,3933.7,0.2248]
[1758877833924,0.79615,3933.9,3933.8,0.26]
[1758877834421,0.45716,3933.8,3933.5,0.45719]
[1758877834614,0.45716,3933.8,3933.6,40.1288]
[1758877834615,0.79616,3933.8,3933.6,40.1288]
[1758877834917,0.79619,3933.5,3933.4,40.8]
[1758877835105,0.79619,3933.5,3933.4,80.703]
[1758877835310,0.79619,3933.5,3933.4,39.903]
[1758877835509,0.45726,3932.9,3932.7,8.85506675]
[1758877835720,0.339,3933.2,3933.1,39.645]
[1758877835920,0.45721,3933.4,3933.2,0.2248]
[1758877836114,0.45721,3933.4,3933.3,0.4838]
[1758877836314,0.45721,3933.4,3933.3,0.259]
[1758877836315,0.79621,3933.4,3933.3,0.259]
[1758877838315,1.00561,3933.4,3933.3,0.4902]
[1758877839320,1.00561,3933.4,3933.3,0.7011]
[1758877840124,0.45726,3932.9,3932.8,40.8]
[1758877840317,1.21636,3932.9,3932.8,80.706]
[1758877840717,1.21636,3932.9,3932.8,40.8]
[1758877840718,1.00566,3932.9,3932.8,40.8]
[1758877841015,1.00566,3932.9,3932.8,40.1372]
[1758877841616,1.21639,3932.7,3932.6,8.63026675]
[1758877841920,1.21639,3932.7,3932.6,9.12046675]
[1758877843917,0.4201,3932.3,3931.8,8.63026675]
[1758877844114,0.87748,3931.9,3931.8,0.2312]
[1758877844317,0.87748,3931.9,3931.8,0.4902]
[1758877844521,1.21648,3931.9,3931.8,0.4902]
[1758877844719,1.21648,3931.9,3931.8,0.259]
[1758877844921,1.34533,3931.5,3931.4,0.2312]
[1758877845119,0.79644,3931.4,3931.3,39.651]
[1758877845424,0.79644,3931.4,3931.3,39.91]
[1758877845924,1.27224,3932.0,3931.3,39.91]
[1758877845925,0.45742,3931.6,3931.4,0.2248]
[1758877846124,0.45742,3931.6,3931.5,0.259]
[1758877846125,0.45741,3931.6,3931.5,0.259]
[1758877846328,0.79641,3931.6,3931.5,0.259]
[1758877846624,0.4574,3931.7,3931.6,0.2248]
[1758877846821,0.4574,3931.7,3931.6,0.4838]
[1758877847420,0.79647,3931.1,3931.0,8.63026675]
[1758877847633,0.79647,3931.1,3930.5,8.63026675]
[1758877847634,0.79653,3930.6,3930.5,8.63026675]
[1758877847823,0.1288,3931.0,3930.5,48.76906675]
[1758877848023,0.339,3930.9,3930.6,0.2248]
[1758877848217,0.339,3930.9,3930.8,0.4421]
[1758877848526,0.7965,3930.9,3930.8,0.4421]
[1758877848825,1.0059,3930.9,3930.8,0.4421]
[1758877849322,0.339,3930.9,3930.8,0.6669]
[1758877849524,0.4574,3931.7,3931.3,0.4421]
[1758877849720,0.4574,3931.7,3931.6,0.4421]
[1758877850024,1.2165,3931.7,3931.6,0.4902]
[1758877850221,0.3382,3931.5,3931.4,0.4421]
[1758877850421,0.1288,3931.5,3931.4,0.7011]
[1758877850815,0.1288,3931.5,3931.4,0.4421]
[1758877850816,0.4678,3931.5,3931.4,0.4421]
[1758877851017,0.45745,3931.3,3931.0,8.63026675]
[1758877851226,0.5484,3931.2,3931.1,39.919]
[1758877851719,0.7591,3931.2,3930.5,49.43026675]
[1758877851919,0.5484,3930.9,3930.8,0.2312]
[1758877852119,1.21659,3930.9,3930.8,40.1512]
[1758877852824,0.7591,3930.9,3930.8,40.1512]
[1758877853026,0.339,3930.9,3930.8,40.3631]
[1758877853229,0.339,3930.9,3930.8,40.5879]
[1758877854524,0.339,3930.9,3930.8,41.04539]
[1758877854727,0.339,3930.9,3930.8,40.5879]
[1758877854924,0.339,3930.9,3930.8,41.04539]
[1758877855233,0.45741,3931.5,3931.3,0.6669]
[1758877855526,0.45741,3931.5,3931.4,0.9259]
[1758877855730,0.79641,3931.5,3931.4,0.9259]
[1758877856135,0.339,3931.5,3931.4,0.9259]
[1758877856429,0.1288,3932.0,3931.4,0.7011]
[1758877856630,1.27219,3932.0,3931.4,0.9259]
[1758877856832,0.339,3931.9,3931.4,0.9259]
[1758877857029,0.5484,3931.9,3931.8,0.4421]
[1758877857337,1.80548163,3933.4,3931.8,0.4421]
[1758877857338,0.339,3932.5,3932.4,0.4421]
[1758877857626,0.45722,3933.1,3932.7,0.45727]
[1758877857832,0.79622,3933.1,3932.9,0.2248]
[1758877858027,0.339,3933.1,3933.0,0.259]
[1758877858229,0.339,3933.4,3933.1,0.2248]
[1758877858423,0.339,3933.4,3933.3,0.2248]
[1758877859230,0.45718,3933.4,3933.3,39.923]
[1758877859528,0.45722,3933.1,3932.9,8.63026675]
[1758877859836,0.4678,3933.0,3932.9,8.63026675]
[1758877860025,0.4678,3933.0,3932.9,48.55326675]
[1758877860336,0.4678,3933.0,3932.9,48.55226675]
[1758877860729,0.339,3933.0,3932.9,8.63026675]
[1758877860926,0.4663,3933.0,3932.9,48.55226675]
[1758877861126,0.4663,3933.0,3932.9,8.63026675]
[1758877861632,0.4663,3933.0,3932.9,48.55126675]
[1758877861834,0.3418,3932.8,3932.7,39.662]
[1758877862227,0.91119674,3932.8,3932.7,39.921]
[1758877865036,0.3168,3933.2,3932.7,39.921]
[1758877865239,0.57326768,3933.1,3933.0,0.225]
[1758877865430,0.45721,3933.2,3933.1,0.225]
[1758877865731,0.4572,3933.3,3933.0,0.259]
[1758877865935,0.45721,3933.2,3933.1,0.225]
[1758877866236,0.45721,3933.2,3933.1,0.484]
[1758877866930,0.4572,3933.3,3933.2,0.225]
[1758877867635,0.774,3933.3,3933.2,0.225]
[1758877867831,0.4456,3933.5,3933.2,0.45721]
[1758877868033,0.90277,3933.5,3933.3,0.484]
[1758877868233,0.45723,3933.1,3932.9,8.63026675]
[1758877868433,0.45723,3933.1,3933.0,40.5727]
[1758877868635,0.1288,3933.5,3933.0,40.3477]
[1758877868828,0.1288,3933.5,3933.3,0.2136]
[1758877868829,0.3168,3933.4,3933.3,0.2136]
[1758877869134,0.77398,3933.4,3933.3,0.6887]
[1758877869732,0.99098,3933.4,3933.3,0.6887]
[1758877871738,0.3168,3933.4,3933.3,0.9137]
[1758877871927,0.77399,3933.4,3933.3,0.6887]
[1758877872132,0.99099,3933.4,3933.3,0.6887]
[1758877872637,0.45719,3933.4,3933.3,0.9137]
[1758877872840,0.3458,3934.0,3933.9,0.2136]
[1758877873038,0.3458,3934.0,3933.9,0.6887]
[1758877873436,0.4456,3934.0,3933.9,1.37082]
[1758877873639,0.3168,3934.3,3934.2,0.4411]
[1758877873839,0.77389,3934.3,3934.2,0.9137]
[1758877874034,0.99089,3934.3,3934.2,0.6887]
[1758877874237,0.5338,3934.3,3934.2,0.6887]
[1758877874540,0.5338,3934.8,3934.7,0.2136]
[1758877874836,1.78176101,3934.8,3934.7,0.259]
[1758877875438,1.32473101,3934.8,3934.7,0.4726]
[1758877875635,0.7563,3934.8,3934.7,0.4726]
[1758877875842,0.3168,3934.8,3934.7,1.14574]
[1758877876035,0.3168,3934.8,3934.7,1.37074]
[1758877876230,0.1307,3935.0,3934.8,0.45702]
[1758877876543,0.4475,3935.0,3934.9,9.12272112]
[1758877877143,0.3168,3935.0,3934.9,9.12272112]
[1758877877346,0.3168,3935.2,3935.1,0.2161]
[1758877877639,0.1307,3935.5,3935.3,0.45696]
[1758877877846,0.6645,3935.5,3935.4,0.6887]
[1758877878450,0.6645,3935.5,3935.4,0.4297]
[1758877878638,0.3168,3935.9,3935.8,1.1116]
[1758877878939,0.3168,3935.9,3935.8,9.12261112]
[1758877879244,0.89635,3936.4,3936.3,0.2136]
[1758877879442,0.89635,3936.4,3936.3,0.4726]
[1758877879443,0.4395,3936.4,3936.3,0.4726]
[1758877879641,0.217,3936.4,3936.3,0.6887]
[1758877879841,0.7563,3936.4,3936.3,0.259]
[1758877880036,0.6645,3936.0,3935.9,0.2136]
[1758877880230,0.6645,3936.0,3935.9,40.1196]
[1758877883242,0.6645,3936.0,3935.9,40.3446]
[1758877883447,0.3168,3936.0,3935.9,40.3446]
[1758877883749,0.5338,3936.3,3936.2,0.88656]
[1758877884044,0.99065,3936.3,3936.2,8.44071112]
[1758877884845,1.21315,3936.3,3936.2,8.44071112]
[1758877887642,0.7563,3936.3,3936.2,8.44071112]
[1758877888045,1.21315,3936.3,3936.2,8.44071112]
[1758877889748,1.21315,3936.3,3936.2,0.2136]
[1758877889949,1.21315,3936.3,3936.2,0.4726]
[1758877893359,1.7794978,3936.3,3936.2,0.4726]
[1758877894456,1.7794978,3936.3,3936.2,0.2136]
[1758877894754,1.7794978,3936.3,3936.2,0.259]
[1758877895057,1.7794978,3936.3,3935.8,7.75201112]
[1758877895058,1.2043,3935.9,3935.8,40.0728]
[1758877895250,1.2043,3935.9,3935.8,40.3318]
[1758877897053,1.2043,3935.9,3935.8,0.4438]
[1758877897252,1.77068205,3935.9,3935.8,0.7018]
[1758877897460,1.2043,3935.9,3935.8,0.4438]
[1758877897760,0.7474,3935.9,3935.8,1.15871]
[1758877898056,0.7474,3935.9,3935.8,8.45381112]
[1758877898261,1.31397939,3935.9,3935.8,8.45381112]
[1758877898450,1.77087939,3935.9,3935.8,8.45381112]
[1758877898650,1.77087939,3935.9,3935.8,2.88224282]
[1758877899159,0.56657939,3935.9,3935.8,3.56385282]
[1758877899353,0.3209,3936.6,3936.5,1.12532]
[1758877899549,0.20324471,3936.7,3936.6,1.12532]
[1758877899748,0.3209,3937.0,3936.7,0.4568]
[1758877900052,0.9847841,3937.0,3936.9,2.84894282]
[1758877900248,1.3303841,3937.0,3936.9,2.88324282]
[1758877900650,1.3303841,3937.0,3936.9,0.4438]
[1758877900847,1.3303841,3937.0,3936.9,0.7028]
[1758877901561,0.8736141,3937.0,3936.9,0.7028]
[1758877902060,0.5280141,3937.0,3936.9,1.38428]
[1758877902260,0.2071141,3937.0,3936.9,1.38428]
[1758877902449,0.1307,3937.5,3936.9,0.7028]
[1758877902649,0.45677,3937.0,3936.9,0.7028]
[1758877902849,0.45677,3937.0,3936.9,0.9275]
[1758877903249,0.20719893,3937.0,3936.9,1.15958]
[1758877903466,0.3209,3937.1,3936.9,1.15958]
[1758877903652,0.77766,3937.1,3936.9,0.7028]
[1758877903960,0.45677,3937.0,3936.9,0.9275]
[1758877904158,0.77767,3937.0,3936.9,0.9275]
[1758877904359,0.3209,3937.0,3936.9,0.9275]
[1758877904757,0.52323253,3937.0,3936.9,0.9275]
[1758877904953,0.20233253,3937.0,3936.9,0.9275]
[1758877905261,0.3209,3937.0,3936.9,0.9275]
[1758877905753,0.20031674,3937.0,3936.9,1.38428]
[1758877905956,10.02789348,3938.7,3936.9,1.38428]
[1758877905957,0.99058,3937.8,3937.7,0.4438]
[1758877906147,0.99058,3937.8,3937.7,0.7018]
[1758877906350,0.95152434,3937.8,3937.7,0.7018]
[1758877906559,1.40820434,3937.8,3937.7,0.7018]
[1758877906760,0.95152434,3937.8,3937.7,0.7018]
[1758877906961,0.95152434,3937.8,3937.7,1.15849]
[1758877907152,0.95152434,3937.8,3937.7,0.7018]
[1758877907348,0.95152434,3937.8,3937.7,1.15849]
[1758877907553,0.52502434,3937.8,3937.7,1.38319]
[1758877908059,0.73802434,3937.8,3937.7,1.38319]
[1758877908962,0.73802434,3937.8,3937.7,0.9265]
[1758877909357,0.73802434,3937.8,3937.7,0.7018]
[1758877910159,1.19470434,3937.8,3937.7,0.7018]
[1758877911262,1.74469921,3937.8,3937.7,0.7018]
[1758877912562,1.28801921,3937.8,3937.7,1.15849]
[1758877912754,1.74469921,3937.8,3937.7,0.7018]
[1758877913171,1.95819921,3937.8,3937.7,0.7018]
[1758877913464,1.74469921,3937.8,3937.7,1.38319]
[1758877913668,1.74469921,3937.8,3937.7,0.9265]
[1758877913865,1.74469921,3937.8,3937.7,0.7018]
[1758877914168,1.95819921,3937.8,3937.7,0.7018]
[1758877915670,1.18061921,3937.8,3937.2,40.8]
[1758877915973,0.5339,3937.3,3937.2,40.8]
[1758877916151,0.99063,3937.3,3937.2,39.612]
[1758877916357,0.7375961,3937.3,3937.2,40.32675]
[1758877916661,0.7375961,3937.3,3937.2,39.87]
[1758877916864,1.1943361,3937.3,3937.2,39.87]
[1758877917961,0.7375961,3937.3,3937.2,39.87]
[1758877918263,0.5339,3937.3,3937.2,40.32675]
[1758877918661,0.4535,3937.5,3937.4,1.12522]
[1758877918864,0.3209,3937.5,3937.4,1.38322]
[1758877919164,0.5339,3937.5,3937.4,0.9265]
[1758877919357,1.12321,3937.5,3937.4,0.9265]
[1758877919758,0.77764,3937.3,3937.2,0.2145]
[1758877919964,1.20414,3937.3,3937.2,40.0845]
[1758877920165,0.7474,3937.3,3937.2,40.54125]
[1758877920668,0.7474,3937.3,3937.2,42.72002089]
[1758877920973,1.27425,3938.0,3937.2,42.72002089]
[1758877920974,0.3463,3938.0,3937.8,0.232]
[1758877921164,0.3463,3938.0,3937.9,2.87837089]
[1758877921467,1.90483848,3938.0,3937.9,2.87837089]
[1758877921766,1.23397848,3938.0,3937.9,3.55954089]
[1758877921960,1.23397848,3938.0,3937.9,3.30154089]
[1758877922161,1.69062848,3938.0,3937.9,2.84487089]
[1758877922364,1.90482848,3938.0,3937.7,2.17877089]
[1758877922564,1.22258,3937.8,3937.7,2.38837089]
[1758877922862,1.76992162,3937.8,3937.7,2.43677089]
[1758877923060,1.76992162,3937.8,3937.7,2.64637089]
[1758877923061,1.31325327,3937.8,3937.7,2.64637089]
[1758877923257,0.7659,3937.8,3937.7,5.51383178]
[1758877923458,0.53763544,3937.8,3937.7,5.73833178]
[1758877923660,0.19963544,3937.8,3937.7,5.73833178]
[1758877923864,0.5517,3937.8,3937.7,5.51383178]
[1758877924454,0.5517,3937.8,3937.7,4.79914178]
[1758877924656,1.22258,3937.8,3937.7,2.62037089]
[1758877924862,1.77010312,3937.8,3937.7,42.25637089]
[1758877925166,1.77010312,3937.8,3937.7,2.64637089]
[1758877925365,1.97313774,3937.8,3937.7,2.17877089]
[1758877925565,0.90621,3937.5,3937.4,41.78877089]
[1758877925767,0.90621,3937.5,3937.4,42.04677089]
[1758877926262,1.45412319,3937.5,3937.4,42.04677089]
[1758877926465,1.44823402,3937.5,3937.4,42.04677089]
[1758877927162,0.90621,3937.5,3937.4,42.04677089]
[1758877927564,1.33131,3937.5,3937.4,2.87047089]
[1758877928170,0.1326,3938.0,3937.4,5.27404178]
[1758877928465,1.52574359,3937.9,3937.8,0.4337]
[1758877928665,1.52574359,3937.9,3937.8,0.6917]
[1758877929062,1.74064359,3937.9,3937.8,0.6917]
[1758877930065,1.74064359,3937.9,3937.8,0.258]
[1758877930666,1.19842,3937.4,3937.3,0.4337]
[1758877930866,1.74148246,3937.4,3937.3,40.3007]
[1758877931066,0.3166,3937.4,3937.3,48.72485344]
[1758877931267,0.3166,3937.4,3937.3,48.26811344]
[1758877931972,0.3166,3937.4,3937.3,48.72485344]
[1758877932270,0.3166,3937.4,3937.3,48.26811344]
[1758877932271,0.77333,3937.4,3937.3,48.26811344]
[1758877932467,0.3166,3937.8,3937.7,0.45669]
[1758877932766,1.31662947,3937.8,3937.7,8.65911344]
[1758877933365,1.52682947,3937.8,3937.7,8.65911344]
[1758877933674,1.52682947,3937.8,3937.7,8.43431344]
[1758877935468,1.74172947,3937.8,3937.7,0.4337]
[1758877935675,1.74172947,3937.8,3937.4,0.2248]
[1758877935676,0.3166,3937.7,3937.6,0.4337]
[1758877935882,1.31663947,3937.7,3937.6,0.9165]
[1758877936772,1.74173947,3937.7,3937.6,0.6917]
[1758877937175,1.74173947,3937.7,3937.6,0.469]
[1758877938478,1.74173947,3937.7,3937.6,0.6917]
[1758877939378,1.52683947,3937.7,3937.6,0.6917]
[1758877939572,1.52683947,3937.7,3937.6,1.1484]
[1758877939878,1.52683947,3937.7,3937.6,0.6917]
[1758877940179,1.74173947,3937.7,3937.6,0.6917]
[1758877940372,1.74173947,3937.7,3937.6,1.1484]
[1758877940574,1.74173947,3937.7,3937.6,0.6917]
[1758877940983,0.54334947,3937.7,3937.6,1.3732]
[1758877941174,0.7417,3937.7,3937.6,40.2997]
[1758877941381,0.7417,3937.7,3937.6,40.7564]
[1758877941681,1.7407245,3937.7,3937.6,40.2997]
[1758877942474,1.7407245,3937.7,3937.6,40.7564]
[1758877942673,1.7407245,3937.7,3937.6,40.2997]
[1758877944085,1.7407245,3937.7,3937.6,40.077]
[1758877948193,1.7407245,3937.7,3937.6,40.3018]
[1758877948390,1.5258245,3937.7,3937.6,40.7585]
[1758877948586,1.3156245,3937.7,3937.6,40.7585]
[1758877948893,1.3156245,3937.7,3937.6,40.3018]
[1758877949095,1.3156245,3937.7,3937.6,40.077]
[1758877949397,1.31451646,3937.7,3937.6,40.077]
[1758877949589,1.31451646,3937.7,3937.6,40.3018]
[1758877949894,0.85782646,3937.7,3937.6,40.7585]
[1758877950096,0.99791646,3937.7,3937.6,40.7585]
[1758877950483,0.54122646,3937.7,3937.6,40.7585]
[1758877950689,0.3433,3938.3,3938.2,0.4496]
[1758877950894,1.34111127,3938.3,3938.2,0.932]
[1758877951099,0.54119127,3938.3,3938.2,3.95150142]
[1758877951899,1.34111127,3938.3,3938.2,3.49487142]
[1758877952095,0.88449127,3938.3,3938.2,3.49487142]
[1758877952296,1.34111127,3938.3,3938.2,3.49487142]
[1758877952694,1.55911127,3938.3,3938.2,3.27047142]
[1758877952895,1.77711127,3938.3,3938.2,3.27047142]
[1758877956403,0.97719127,3938.3,3937.9,0.2237]
[1758877956610,1.23604,3937.3,3937.2,0.4496]
[1758877956803,1.77723127,3937.3,3937.2,0.7076]
[1758877957005,1.77723127,3937.3,3937.2,0.932]
[1758877957412,1.10249127,3937.3,3937.2,3.49487142]
[1758877957617,0.5613,3937.3,3937.2,3.49487142]
[1758877957910,1.01804,3937.3,3937.2,3.49487142]
[1758877959010,0.3433,3937.3,3937.2,3.95162142]
[1758877959209,0.79997,3937.9,3937.8,0.2259]
[1758877959414,1.77340286,3937.9,3937.8,0.7076]
[1758877959616,1.77340286,3937.9,3937.8,0.258]
[1758877960912,1.77340286,3937.9,3937.8,0.4817]
[1758877961823,0.565,3937.5,3937.2,2.56287142]
[1758877962115,0.565,3937.5,3937.2,2.78657142]
[1758877962116,0.89274,3937.3,3937.2,2.78657142]
[1758877962321,1.23604,3937.3,3937.2,3.27047142]
[1758877962818,1.01804,3937.3,3937.2,3.95162142]
[1758877963013,0.92903,3937.5,3937.4,0.674]
[1758877963218,0.92903,3937.5,3937.4,0.932]
[1758877963426,1.14703,3937.5,3937.4,0.932]
[1758877963925,1.36503,3937.5,3937.4,0.7076]
[1758877964315,1.36503,3937.5,3937.4,0.4817]
[1758877965917,1.90112242,3937.5,3937.4,0.258]
[1758877967322,1.90112242,3937.5,3937.4,0.4817]
[1758877968221,1.90112242,3937.5,3937.4,0.258]
[1758877971733,1.23609,3936.9,3936.8,2.56287142]
[1758877972027,1.77198958,3936.9,3936.8,0.258]
[1758877972219,1.77198958,3936.9,3936.8,0.4817]
[1758877972421,1.77198958,3936.9,3936.8,3.27047142]
[1758877972725,1.23609,3936.9,3936.8,3.49487142]
[1758877973122,1.23609,3936.9,3936.8,0.7076]
[1758877975417,1.23609,3936.9,3936.8,0.4817]
[1758877977528,0.45674,3937.3,3937.2,0.45675]
[1758877977715,0.67474,3937.3,3937.2,3.49487142]
[1758877978022,0.89274,3937.3,3937.2,3.27047142]
[1758877978222,1.23604,3937.3,3937.2,3.27047142]
[1758877979329,1.23604,3937.3,3937.2,0.258]
[1758877979527,1.76900156,3937.3,3937.2,0.258]
[1758877980217,1.24441,3936.7,3936.6,3.24339142]
[1758877980421,1.24441,3936.7,3936.6,3.72509142]
[1758877980729,1.24441,3936.7,3936.6,3.26827142]
[1758877980918,0.7876,3936.7,3936.6,3.72509142]
[1758877981115,1.01431,3936.7,3936.6,3.94989142]
[1758877981324,1.01431,3936.7,3936.6,3.26827142]
[1758877981525,1.01431,3936.7,3936.6,3.72509142]
[1758877981526,1.24441,3936.7,3936.6,3.72509142]
[1758877982625,0.5575,3936.7,3936.6,3.94989142]
[1758877983021,1.01431,3936.7,3936.6,3.49307142]
[1758877983528,1.01431,3936.7,3936.6,3.26827142]
[1758877984724,1.24441,3936.7,3936.6,0.258]
[1758877985224,0.45681,3936.8,3936.7,0.8975]